Cogmind - Beta 10.2 @@@ ROGUE MODE // 2020.11.22 @ 22:06:41 // Halloween2020/ForbiddenLore Player: Nix Result: Destroyed by S-27 Virus with Autogun Performance ------------- Evolutions (3) 1500 Regions Visited (4) 800 Robots Destroyed (9) 45 Value Destroyed (203) 203 Prototype IDs (0) 0 Alien Tech Used (0) 0 Bonus (0) 0 TOTAL SCORE: 2548 Bonus ------- None Cogmind --------- Core Integrity 0/700 Matter 300/300 Energy 99/100 System Corruption 5% Temperature Cool (0) Movement Core (50) Location -7/Factory Parts ------- > --- POWER (2) -------- (None) > --- PROPULSION (3) --- (None) > --- UTILITY (5) ------ Terrain Scan Processor > --- WEAPON (3) ------- (None) > --- INVENTORY (4) ---- Medium Storage Unit Improved Terrain Scanner Flak Cannon Rocket Launcher Peak State ------------ > --- POWER ------------ Ion Engine > --- PROPULSION ------- Improved Hover Unit Improved Hover Unit Improved Hover Unit > --- UTILITY ---------- Small Storage Unit Improved Terrain Scanner Terrain Scan Processor Transmission Jammer Improved Light Armor Plating > --- WEAPON ----------- Heavy EM Pulse Gun Small Laser Improved Grenade Launcher > --- INVENTORY -------- Wheel Improved Hover Unit Flak Cannon Rocket Launcher Improved Datajack [Rating: 25] Favorites ----------- Power Ion Engine Engine Ion Engine Propulsion Improved Hover Unit Wheel Wheel Hover Unit Improved Hover Unit Flight Unit Flight Unit Utility Small Storage Unit Device Improved Terrain Scanner Storage Small Storage Unit Processor Terrain Scan Processor Protection Improved Light Armor Plating Weapon Small Laser Energy Gun Small Laser Energy Cannon Particle Cannon Ballistic Gun Assault Rifle Ballistic Cannon Flak Cannon Launcher Improved Grenade Launcher Special Melee Weapon Improved Datajack Build | -11 -10 -9 -8 -7 ------- Run | Scr Mat Mat Mat Fac Slots Evolved 6 | . . 2 2 2 Power 1 | . . . 1 . Propulsion 1 | . . 1 . . Utility 3 | . . 1 . 2 Weapon 1 | . . . 1 . Parts Attached 33 | 6 4 10 6 7 Power 3 | 1 1 . 1 . Engine 3 | 1 1 . 1 . Core . | . . . . . Reactor . | . . . . . Propulsion 12 | 2 2 3 3 2 Treads . | . . . . . Leg . | . . . . . Wheel 3 | 2 . . . 1 Hover 7 | . . 3 3 1 Flight 2 | . 2 . . . Utility 6 | 1 . 3 . 2 Device 3 | . . 2 . 1 Storage 1 | 1 . . . . Processor 1 | . . 1 . . Hackware . | . . . . . Protection 1 | . . . . 1 Artifact . | . . . . . Weapon 12 | 2 1 4 2 3 Energy Gun 5 | 2 . 2 . 1 Energy Cannon 1 | . . 1 . . Ballistic Gun 1 | . 1 . . . Ballistic Cannon 1 | . . . . 1 Launcher 3 | . . 1 1 1 Special Weapon . | . . . . . Impact Weapon . | . . . . . Slashing Weapon . | . . . . . Piercing Weapon . | . . . . . Special Melee Weapon 1 | . . . 1 . Unidentified Prototypes . | . . . . . Parts Lost 14 | . 1 . 2 11 Power 2 | . . . 1 1 Propulsion 6 | . . . 1 5 Utility 2 | . . . . 2 Weapon 4 | . 1 . . 3 Highest Loss Streak 10 | . 1 . 2 10 Average Slot Usage (%) 81 | . 75 83 94 78 Engine 8 | . 14 11 13 5 Wheel 1 | . 14 . . . Hover 18 | . . 23 26 18 Flight 1 | . 11 7 . . Device 10 | . . 9 9 13 Storage 8 | . 14 11 9 6 Processor 6 | . . 4 9 7 Protection 3 | . . . . 5 Energy Gun 13 | . 17 15 18 11 Launcher 3 | . . . . 5 Special Melee Weapon 1 | . . . 8 . Naked Turns . | . . . . . Heaviest Build 24 | 10 10 13 18 24 Greatest Support 25 | 10 10 24 25 16 Greatest Overweight (x) 3 | . 3 . . 2 Average Overweight (x) . | . . . . . Largest Inventory Capacity 6 | 6 6 6 6 6 Average Capacity 5 | 4 6 6 6 5 Most Carried 6 | 6 6 6 6 6 Average Carried 5 | 2 5 5 5 5 Final Capacity 6 | 6 6 6 6 4 Final Carried 6 | 6 6 6 6 4 Class Distribution -------------------- 100% | Mutant Dominant Class ---------------- Mutant | -10/Materials Mutant | -9/Materials Mutant | -8/Materials Mutant | -7/Factory Resources | -11 -10 -9 -8 -7 ----------- Run | Scr Mat Mat Mat Fac Matter Collected 495 | 260 . . 81 154 Remotely . | . . . . . Salvage Created 269 | . 43 . 141 85 Parts 24 | . 8 . 7 9 Haulers Intercepted 1 | . . . . 1 Recyclers Shooed 1 | . . . . 1 Parts Field Recycled . | . . . . . Retrieved Matter . | . . . . . Parts Self-Destructed . | . . . . . Prevented . | . . . . . Kills | -11 -10 -9 -8 -7 ------- Run | Scr Mat Mat Mat Fac Combat Hostiles Destroyed 7 | . 3 . 2 2 Guns 6 | . 3 . 2 1 AOE 1 | . . . . 1 Classes Destroyed 5 | . 1 . 3 1 Hauler 1 | . . . . 1 Watcher 1 | . . . 1 . Swarmer 5 | . 3 . . 2 Grunt 1 | . . . 1 . Sentry 1 | . . . 1 . Best Kill Streak 3 | . 3 . 2 2 Combat Bots Only 3 | . 3 . 2 1 Max Kills in Single Turn 2 | . 1 . 1 2 Gunslinging . | . . . . . Exploded 1 | . . . . 1 Melee . | . . . . . Uniques/NPCs Destroyed . | . . . . . Combat | -11 -10 -9 -8 -7 -------- Run | Scr Mat Mat Mat Fac Damage Taken 1740 | . 160 40 165 1375 Core 763 | . 26 15 14 708 Absorbed by Shields . | . . . . . Core Remaining (%) 95 | 100 89 96 97 . Volleys Fired 43 | . 20 . 10 13 Largest 2 | . 2 . 2 2 Hottest 85 | . 80 . 85 85 Shots Fired 69 | . 30 . 20 19 Gun 67 | . 30 . 20 17 Cannon 2 | . . . . 2 Launcher . | . . . . . Special . | . . . . . Kinetic 7 | . 5 . . 2 Thermal 35 | . 19 . 10 6 Explosive . | . . . . . Electromagnetic 27 | . 6 . 10 11 Robot Hit Streak 12 | . 5 . 11 12 Robot Miss Streak 4 | . 4 . 2 3 Penetration Max . | . . . . . Secondary Targets 2 | . 1 . . 1 Max Gunslinging Chain 1 | . 1 . . 1 Shots Hit Robots 42 | . 16 . 16 10 Core Hits 21 | . 4 . 6 11 Critical Hits . | . . . . . Critical Kills . | . . . . . Critical Parts Destroyed . | . . . . . Melee Attacks 1 | . . . 1 . Impact . | . . . . . Slashing . | . . . . . Piercing . | . . . . . Sneak Attacks . | . . . . . Combat Hostiles . | . . . . . Follow-up Attacks . | . . . . . Damage Inflicted 742 | . 127 . 261 354 Guns 426 | . 127 . 203 96 Cannons 53 | . . . . 53 Explosions 201 | . . . 58 143 Melee . | . . . . . Ramming 62 | . . . . 62 Kinetic 78 | . 25 . . 53 Thermal 382 | . 81 . 147 154 Explosive . | . . . . . Electromagnetic 220 | . 21 . 114 85 Impact . | . . . . . Slashing . | . . . . . Piercing . | . . . . . Highest Corruption 5 | . . . . 5 Average Corruption 2 | . . . . 2 Corruption Purged . | . . . . . Effects 6 | . . . . 6 Matter Fused 1 | . . . . 1 Data Loss (minor) 4 | . . . . 4 Targeting Errors 1 | . . . . 1 Overload Shots . | . . . . . Overflow Damage . | . . . . . Projectiles . | . . . . . Explosions . | . . . . . Melee . | . . . . . Knockbacks 8 | . . . . 8 Impact 2 | . . . . 2 Kinetic 6 | . . . . 6 Secondary . | . . . . . Self-Inflicted Damage 27 | . . . . 27 Shots . | . . . . . Rammed 14 | . . . . 14 Targets Rammed 14 | . . . . 14 Kicked . | . . . . . Crushed . | . . . . . Highest Temperature 246 | . 90 . 246 45 Average Temperature 65 | . 42 . 115 16 Received Heat Transfer 291 | . . 9 72 210 Effects 5 | . . . 5 . Energy Bleed 1 | . . . 1 . Interference 4 | . . . 4 . Siege Activations . | . . . . . Robots Corrupted . | . . . . . Combat Hostiles . | . . . . . Parts Fried 1 | . . . 1 . Impact Corruptions . | . . . . . Robots Melted . | . . . . . Combat Hostiles . | . . . . . Parts Melted 3 | . 1 . 1 1 Heat Transferred 625 | . 200 . 250 175 Parts Sabotaged . | . . . . . Parts Stolen . | . . . . . Parts Stripped . | . . . . . Power Chain Reactions 2 | . . . 1 1 Missiles Intercepted . | . . . . . Alert | -11 -10 -9 -8 -7 ------- Run | Scr Mat Mat Mat Fac Peak Influence 157 | . 127 83 122 157 Initial 55 | . . 53 34 55 Average 49 | . 65 60 72 43 Maximum Alert Level . | . . . . . Low Security (%) 100 | 100 100 100 100 100 Level 1 . | . . . . . Level 2 . | . . . . . Level 3 . | . . . . . Level 4 . | . . . . . Level 5 . | . . . . . High Security . | . . . . . Max Security . | . . . . . Squads Dispatched 1 | . 1 . . . Investigation . | . . . . . Extermination . | . . . . . Reinforcement 1 | . 1 . . . Assault . | . . . . . Garrison . | . . . . . Intercept . | . . . . . Construction Impeded . | . . . . . Haulers Reinforced . | . . . . . Stealth | -11 -10 -9 -8 -7 --------- Run | Scr Mat Mat Mat Fac Distress Signals 2 | . 1 1 . . Communications Jammed 1 | . . . . 1 Distress Signals 1 | . . . . 1 Times Spotted 36 | . 9 3 5 19 Peak Tracking Total 12 | . 4 7 3 12 Tactical Retreats 8 | . . 1 2 5 Traps | -11 -10 -9 -8 -7 ------- Run | Scr Mat Mat Mat Fac Traps Triggered 1 | . . . . 1 Indirectly . | . . . . . Trap Hack Attempts . | . . . . . Triggered . | . . . . . Disarmed . | . . . . . Reprogrammed 4 | . . . 4 . Reused 1 | . . . 1 . Traps Extracted . | . . . . . Installed . | . . . . . Triggered 1 | . . . 1 . Machines | -11 -10 -9 -8 -7 ---------- Run | Scr Mat Mat Mat Fac Machines Disabled . | . . . . . Max in Single Turn . | . . . . . Machines Sabotaged . | . . . . . Garrisons Compromised . | . . . . . Overloaded Fab Kills . | . . . . . Fab Network Shutdowns . | . . . . . Hacking | -11 -10 -9 -8 -7 --------- Run | Scr Mat Mat Mat Fac Machines Accessed 6 | . 1 2 2 1 Terminals 6 | . 1 2 2 1 Fabricators . | . . . . . Repair Stations . | . . . . . Recycling Units . | . . . . . Scanalyzers . | . . . . . Garrison Access . | . . . . . Total Hacks 14 | . 2 5 4 3 Successful 8 | . 1 2 2 3 Failed 6 | . 1 3 2 . Catastrophic . | . . . . . Database Lockouts . | . . . . . Manual . | . . . . . Terminals 14 | . 2 5 4 3 Fabricators . | . . . . . Repair Stations . | . . . . . Recycling Units . | . . . . . Scanalyzers . | . . . . . Garrison Access . | . . . . . Terminal Hacks 8 | . 1 2 2 3 Emergency Access Points 1 | . . . 1 . Alert Level 1 | . . 1 . . Reprogram Traps 1 | . . . 1 . Dispatch Records 1 | . . . . 1 Maintenance Status 1 | . . 1 . . Security Status 1 | . 1 . . . Investigation Status 1 | . . . . 1 Hauler Manifests 1 | . . . . 1 Fabricator Hacks . | . . . . . Repair Station Hacks . | . . . . . Recycling Unit Hacks . | . . . . . Scanalyzer . | . . . . . Garrison Access Hacks . | . . . . . Unauthorized Hacks . | . . . . . Terminals . | . . . . . Fabricators . | . . . . . Repair Stations . | . . . . . Recycling Units . | . . . . . Scanalyzers . | . . . . . Garrison Access . | . . . . . Data Cores Recovered . | . . . . . Used . | . . . . . Hacking Detections 6 | . 1 2 2 1 Full Trace Events . | . . . . . Feedback Events . | . . . . . Feedback Blocked . | . . . . . Robot Schematics Acquired . | . . . . . Robots Built . | . . . . . Matter . | . . . . . Time . | . . . . . Total Robot Build Rating . | . . . . . Part Schematics Acquired . | . . . . . Parts Built . | . . . . . Matter . | . . . . . Time . | . . . . . Total Part Build Rating . | . . . . . Parts Repaired . | . . . . . Time . | . . . . . Parts Recycled . | . . . . . Recycled Matter . | . . . . . Retrieved Matter . | . . . . . Retrieved Components . | . . . . . Parts Scanalyzed . | . . . . . Part Schematics Acquired . | . . . . . Parts Damaged . | . . . . . Bothacking | -11 -10 -9 -8 -7 ------------ Run | Scr Mat Mat Mat Fac Used RIF Installer . | . . . . . Robots Hacked 1 | . . . 1 . Non-combat . | . . . . . Combat 1 | . . . 1 . Robot Hacks Applied 1 | . . . 1 . parse_system 1 | . . . 1 . Relay Couplers Released . | . . . . . Robots Rewired . | . . . . . Allies Hacked . | . . . . . Hacks Repelled . | . . . . . Allies | -11 -10 -9 -8 -7 -------- Run | Scr Mat Mat Mat Fac Total Allies . | . . . . . Largest Group . | . . . . . Highest-Rated Group . | . . . . . Highest-Rated Ally . | . . . . . Total Orders . | . . . . . Ally Attacks . | . . . . . Total Damage . | . . . . . Kills . | . . . . . Allies Corrupted . | . . . . . Allies Melted . | . . . . . Intel | -11 -10 -9 -8 -7 ------- Run | Scr Mat Mat Mat Fac Robot Analysis Total . | . . . . . Derelict Logs Recovered . | . . . . . Drone Launches . | . . . . . Drone Recoveries . | . . . . . Exploration | -11 -10 -9 -8 -7 ------------- Run | Scr Mat Mat Mat Fac Turns Passed 1240 | 63 125 86 211 755 Spaces Moved 884 | 57 123 134 152 418 Core 124 | 2 3 . . 119 Treads . | . . . . . Legs . | . . . . . Wheels 116 | 55 30 . . 31 Hover 518 | . . 98 152 268 Flight 126 | . 90 36 . . Fastest Speed 37 | 50 37 37 52 50 Average Speed 75 | 78 51 50 52 98 Slowest Speed 200 | 80 200 60 56 180 Overloaded Moves . | . . . . . Propulsion Burnouts . | . . . . . Robots Hopped 1 | . . 1 . . Cave-ins Triggered . | . . . . . Exploration Rate (%) 15 | 4 27 18 16 14 Regions Visited 4 Branch Regions . Pre-discovered Areas . | . . . . . Known Exits Taken . | . . . . . Unknown Exits Taken 4 | 1 1 1 1 . Scrap Searched . | . . . . . Spaces Dug . | . . . . . Terrain Destroyed 13 | . . . 8 5 Melee . | . . . . . Projectile . | . . . . . AOE 13 | . . . 8 5 Terrain Rammed . | . . . . . Walls Destroyed . | . . . . . Machines Disabled . | . . . . . Actions | -11 -10 -9 -8 -7 --------- Run | Scr Mat Mat Mat Fac Total 1384 | 74 155 149 263 743 Wait 368 | . 3 . 84 281 Move 878 | 56 122 131 151 418 Hop 1 | . . 1 . . Pick Up 23 | 12 1 . 6 4 Fast Attach 13 | . 2 10 1 . Attach 17 | 6 1 . 4 6 Detach 5 | . 1 1 1 2 Swap 3 | . 1 . 1 1 Drop 18 | . 4 6 4 4 Fire 43 | . 20 . 10 13 Melee 1 | . . . 1 . Ram 14 | . . . . 14 Kick . | . . . . . Crush . | . . . . . Escape Stasis . | . . . . . Rewire . | . . . . . Trap . | . . . . . Miscellaneous . | . . . . . Route ------- -11/Scrapyard -10/Materials (discovered 2 exits: *Mat / [*Min]) -9/Materials -8/Materials -7/Factory (discovered 1 exit: [*Fac]) History --------- Turn | Location | Event 20 | -11/Scrapyard | Discovered new exit (range 15) 64 | -11/Scrapyard | Entered Materials 72 | -10/Materials | Discovered new exit (range 13) 183 | -10/Materials | Discovered new exit (range 15) 189 | -10/Materials | Entered another Materials area 189 | -9/Materials | Evolved 2 slots: Propulsion x1, Utility x1 269 | -9/Materials | Discovered new exit (range 9) 275 | -9/Materials | Entered another Materials area 275 | -8/Materials | Evolved 2 slots: Power x1, Weapon x1 323 | -8/Materials | Build established: Mutant 482 | -8/Materials | Discovered new exit (range 4) 486 | -8/Materials | Entered Factory 486 | -7/Factory | Evolved 2 slots: Utility x2 1162 | -7/Factory | Lost 10 parts (1p5n1u3w) 1170 | -7/Factory | Core integrity fell below 50% 1213 | -7/Factory | Discovered new exit (range 8) 1218 | -7/Factory | Core integrity fell below 20% 1241 | -7/Factory | Destroyed by S-27 Virus with Autogun Last Messages --------------- 01193_ Slammed into K-01 Serf. 01193_ K-01 Serf knocked back. 01194_ Slammed into K-01 Serf. 01195_ Slammed into R-06 Scavenger. 01195_ Destabilizing: System corrupted (+2). 01196_ R-06 Scavenger collects Sml. Storage Unit. 01197_ Slammed into U-05 Engineer. 01197_ R-06 Scavenger destroyed. 01197_ R-06 Scavenger collects Com. Wheel. 01199_ Slammed into U-05 Engineer. 01200_ R-06 Scavenger collects Imp. Datajack. 01201_ Slammed into K-01 Serf. 01203_ Slammed into U-05 Engineer. 01203_ U-05 Engineer knocked back. 01210_ Acquired Med. Storage Unit. 01213_ EXIT=FOUND 01217_ System corrupted: Matter fused (-7). 01230_ Transmission Jammer destroyed. 01233_ System corrupted: Component data lost. 01237_ Slammed into S-27 Virus. Map ----- +----------------------------------------------------+ | ?????????????????????????????????????????????????? | | ?????????????????????????????????????????????????? | | ?????????????????????????????????????????????????? | | ?????????????????????????????????????????????????? | | ?????????????????????????????????????????????????? | | ?????????????????????????????????????????????????? | | ?????????????????????????????????????????????????? | | ?????????????????????????????????????????????????? | | ?????????????????????????????????????????????????? | | ?????????????????????????????????????????????????? | | ?????????????????????????????????????????????????? | | ?????????????????????????????????????????????????? | | ?????????????????????????????????????????????????? | | ?????????????????????????????????????????????????? | | ?????????????????????????????????????????????????? | | ???????????????????##############????????????????? | | ???????????????????# #????????????????? | | ???????????????????# #???????????? ?? | | ???????????????????# """"""""" #???????????? !! | | ???????????????????# #???????????# | | ???????????????????# """"""""" #????? ??? # | | ???????????????????# s #???????????# | | ???????????????????# """"""""" #???"?"?? ??# | | ???????????????????# %ss #??????? ???# | | ???????????????????# """"""""" #??? ????"??# | | ?????????? ?????# @ s #???? ????"?+ "" | | ??????????? ????# """"""""" #?# ? ?? S??# "" | | ????????????? ??# gg Y #?#??? ?????# "" | | ?????????????## ?#######+################## "" | | ?????????????# ! ##### "" | | ?????????????# | | ?????????? /